fUSD/lending_fUSD_20241122
["ID","MTS","AMOUNT","RATE_DAILY","PERIOD"]
[343048640,1732311042812,-504.14656479,0.00091216,120]
[343048641,1732311042821,-2074.3,0.00091216,120]
[343048642,1732311042830,-501.92638583,0.00091216,120]
[343048643,1732311042841,-500.0,0.00091216,120]
[343048644,1732311042851,-501.47131094,0.00091216,120]
[343048645,1732311042860,-500.0,0.00091216,120]
[343048646,1732311042869,-500.0,0.00091216,120]
[343048647,1732311042879,-500.0,0.00091216,120]
[343048648,1732311042889,-501.70573269,0.00091216,120]
[343048649,1732311042898,-1471.58,0.00091216,120]
[343048650,1732311042907,-1215.25,0.00091216,120]
[343048651,1732311042916,-500.0,0.00091216,120]
[343048652,1732311042926,-500.0,0.00091216,120]
[343048653,1732311042935,-500.0,0.00091216,120]
[343048654,1732311042945,-500.0,0.00091216,120]
[343048655,1732311042954,-500.0,0.00091216,120]
[343048656,1732311042964,-500.0,0.00091216,120]
[343048657,1732311042973,-174.02457337,0.00091216,120]
[343048658,1732311042982,-500.0,0.00091217,120]
[343048659,1732311042991,-500.0,0.00091217,120]
[343048660,1732311043001,-432.92301899,0.00091217,120]
[343048661,1732311043011,-511.96,0.00091217,120]
[343048662,1732311043020,-500.0,0.00091217,120]
[343048663,1732311043029,-502.28016025,0.00091217,120]
[343048664,1732311043038,-500.0,0.00091217,120]
[343048666,1732311043047,-248.33876368,0.00091217,120]
[343048667,1732311043056,-520.6,0.00091217,120]
[343048669,1732311043065,-543.85,0.00091217,120]
[343048671,1732311043075,-500.0,0.00091217,120]
[343048672,1732311043084,-500.0,0.00091217,120]
[343048673,1732311043093,-236.02,0.00091217,120]
[343048674,1732311043103,-500.0,0.00091217,120]
[343048675,1732311043112,-500.0,0.00091217,120]
[343048676,1732311043121,-500.0,0.00091217,120]
[343048677,1732311043130,-500.0,0.00091217,120]
[343048678,1732311043141,-500.0,0.00091217,120]
[343048679,1732311043151,-2074.3,0.00091217,120]
[343048680,1732311043160,-1321.78,0.00091226,120]
[343048681,1732311043169,-500.0,0.00091298,120]
[343048682,1732311043179,-500.0,0.00091298,120]
[343048683,1732311043188,-500.0,0.00091298,120]
[343048684,1732311043199,-1065.61,0.00091298,120]
[343048685,1732311043208,-2074.3,0.00091298,120]
[343048686,1732311043216,-705.87,0.00091298,120]
[343048687,1732311043225,-2934.28,0.00091298,120]
[343048689,1732311043233,-500.0,0.00091298,120]
[343048692,1732311043242,-500.0,0.00091299,120]
[343048695,1732311043251,-511.96,0.00091299,120]
[343048698,1732311043260,-500.0,0.00091299,120]
[343048701,1732311043270,-500.0,0.00091299,120]
[343048703,1732311043278,-500.0,0.00091299,120]
[343048706,1732311043287,-500.0,0.00091305,120]
[343048708,1732311043296,-500.0,0.00091305,120]
[343048710,1732311043306,-199.66,0.00091305,120]
[343048712,1732311043317,-500.0,0.00091305,120]
[343048714,1732311043329,-500.0,0.00091305,120]
[343048716,1732311043338,-500.0,0.00091305,120]
[343048718,1732311043348,-500.0,0.00091305,120]
[343048720,1732311043357,-500.0,0.00091305,120]
[343048721,1732311043366,-237.48840896,0.00091305,120]
[343048722,1732311043375,-584.64,0.00091305,120]
[343048723,1732311043384,-635.48,0.00091305,120]
[343048724,1732311043404,-609.71365374,0.00091305,120]
[343048725,1732311043420,-500.0,0.00091305,120]
[343048727,1732311043433,-5930.46,0.00091305,120]
[343048728,1732311043446,-603.56,0.00091305,120]
[343048729,1732311043461,-500.0,0.00091305,120]
[343048730,1732311043475,-500.0,0.00091305,120]
[343048731,1732311043491,-500.0,0.00091305,120]
[343048732,1732311043504,-208.79422655,0.00091305,120]
[343048733,1732311043517,-1696.48,0.00091305,120]
[343048734,1732311043527,-629.88,0.00091305,120]
[343048735,1732311043542,-1321.78,0.00091307,120]
[343048736,1732311043556,-500.0,0.00091308,120]
[343048737,1732311043570,-511.96,0.00091308,120]
[343048738,1732311043583,-500.0,0.00091308,120]
[343048739,1732311043598,-290.18967903,0.00091308,120]
[343048740,1732311043611,-2074.3,0.00091316,120]
[343048741,1732311043626,-500.0,0.00091318,120]
[343048742,1732311043641,-511.96,0.00091318,120]
[343048743,1732311043654,-511.96,0.00091328,120]
[343048744,1732311043667,-150.9140371,0.00091538,28]
[343048745,1732311043681,-158.13393115,0.00091686,120]
[343048746,1732311043695,-382.25127002,0.0009196,120]
[343048747,1732311043708,-500.0,0.00091989,120]
[343048748,1732311043719,-470.0,0.00091989,120]
[343048749,1732311043731,-500.0,0.00091989,120]
[343048750,1732311043747,-498.58333498,0.00091989,120]
[343048751,1732311043759,-711.62,0.00091989,120]
[343048752,1732311043769,-481.74,0.00091989,120]
[343048753,1732311043781,-500.0,0.00091989,120]
[343048754,1732311043795,-2857.25,0.00091989,120]
[343048755,1732311043807,-500.0,0.00091989,120]
[343048756,1732311043819,-900.0,0.00092,93]
[343048757,1732311043832,-2384.0,0.00092,30]
[343048758,1732311043844,-50000.0,0.00092,120]
[343048759,1732311043855,-5000.0,0.00092,120]
[343048760,1732311043866,-1472.709,0.00092491,120]
[343048761,1732311043878,-1000.0,0.00092503,120]
[343048762,1732311043891,-561.0,0.00092657,120]
[343048763,1732311043904,-3147.58960553,0.00092657,120]
[343048764,1732311044067,-601.41039447,0.00092657,120]
[343048765,1732311044079,-179.67769646,0.00092657,2]
[343048766,1732311044142,-635.32230354,0.00092657,2]
[343048767,1732311044155,-11938.99901613,0.00092657,120]
[343048768,1732311044176,-282.73226253,0.00088887,120]
[343048769,1732311044297,-292.82932835,0.00092657,120]
[343048770,1732311044319,-1429.17165552,0.00092657,120]
[343048771,1732311044329,-151.0,0.00092657,120]
[343048772,1732311044339,-150.0,0.00092657,120]
[343048773,1732311044349,-1059.915,0.00092657,120]
[343048774,1732311044359,-335.19582115,0.00092657,120]
[343048775,1732311044382,-757.80417885,0.00092657,120]
[343048776,1732311044393,-150.81,0.0009273,120]
[343048777,1732311044404,-158.13393115,0.00092757,120]
[343048778,1732311044413,-500.0,0.00092846,120]
[343048779,1732311044421,-500.0,0.00092846,120]
[343048780,1732311044431,-45.8437535,0.00092846,120]
[343048781,1732311044442,-1124.0362465,0.00092846,120]
[343048782,1732311044451,-248.07,0.00092846,120]
[343048783,1732311044460,-500.0,0.00092846,120]
[343048784,1732311044469,-273.22428595,0.00092846,120]
[343048785,1732311044478,-500.0,0.00092846,120]
[343048786,1732311044487,-500.0,0.00092846,120]
[343048787,1732311044496,-500.0,0.00092846,120]
[343048788,1732311044505,-512.14,0.00092846,2]
[343048789,1732311044514,-500.0,0.00092846,120]
[343048790,1732311044523,-500.0,0.00092846,120]
[343048791,1732311044532,-500.0,0.00092846,120]
[343048792,1732311044541,-500.0,0.00092846,120]
[343048793,1732311044550,-500.0,0.00092846,120]
[343048794,1732311044559,-500.0,0.00092846,120]
[343048795,1732311044568,-500.0,0.00092846,120]
[343048796,1732311044577,-500.0,0.00092846,120]
[343048797,1732311044586,-562.58,0.00092846,120]
[343048798,1732311044595,-500.0,0.00092846,120]
[343048799,1732311044604,-500.0,0.00092846,120]
[343048800,1732311044614,-500.0,0.00092846,120]
[343048801,1732311044623,-500.0,0.00092846,120]
[343048802,1732311044632,-500.0,0.00092846,120]
[343048803,1732311044642,-500.0,0.00092846,120]
[343048804,1732311044652,-500.0,0.00092846,120]
[343048805,1732311044662,-500.0,0.00092846,120]
[343048806,1732311044671,-544.18334639,0.00092846,120]
[343048807,1732311044680,-500.0,0.00092846,120]
[343048808,1732311044690,-500.0,0.00092846,120]
[343048809,1732311044699,-500.0,0.00092846,120]
[343048810,1732311044708,-497.01538105,0.00092846,120]
[343048811,1732311044718,-500.0,0.00092846,120]
[343048812,1732311044727,-500.0,0.00092846,120]
[343048813,1732311044736,-500.0,0.00092846,120]
[343048814,1732311044746,-500.0,0.00092846,120]
[343048815,1732311044755,-1471.58,0.00092846,120]
[343048816,1732311044765,-1215.25,0.00092846,120]
[343048817,1732311044775,-500.0,0.00092846,120]
[343048818,1732311044784,-500.0,0.00092846,120]
[343048819,1732311044794,-151.0,0.00092846,120]
[343048820,1732311044803,-500.0,0.00092846,120]
[343048821,1732311044813,-151.0,0.00092846,120]
[343048822,1732311044822,-2074.3,0.00092847,120]
[343048823,1732311044832,-1321.78,0.00092899,120]
[343048824,1732311044842,-2500.0,0.000929,120]
[343048825,1732311044851,-7081.43,0.00092906,4]
[343048826,1732311044861,-900.0,0.00093,94]
[343048827,1732311044871,-2384.78623897,0.00093,30]
[343048828,1732311044881,-45744.69066478,0.00093,120]
[343048829,1732311045167,-500.0,0.00079999,120]
[343048830,1732311045176,-0.823414,0.00079999,120]
[343048831,1732311045187,-499.176586,0.00079999,120]
[343048832,1732311045197,-500.0,0.00079999,120]
[343048833,1732311045206,-500.0,0.00087999,120]
[343048834,1732311045215,-40.51265499,0.000881,120]
[343048835,1732311045310,-459.48734501,0.000881,120]
[343048836,1732311045320,-500.0,0.000881,120]
[343048837,1732311045331,-134.52853499,0.000881,120]
[343048838,1732311045342,-365.47146501,0.000881,120]
[343048839,1732311045351,-319.9339308,0.00088887,120]
[343048840,1732311045364,-180.0660692,0.00088887,120]
[343048841,1732311045373,-500.0,0.00088887,120]
[343048842,1732311045382,-500.0,0.00088887,120]
[343048843,1732311045392,-500.0,0.00088887,120]
[343048844,1732311045403,-500.0,0.00088887,120]
[343048845,1732311045412,-500.0,0.00088887,120]
[343048846,1732311045421,-500.0,0.00089302,120]
[343048847,1732311045430,-500.0,0.00089302,120]
[343048848,1732311045440,-500.0,0.00089302,120]
[343048849,1732311045449,-500.0,0.00089713,120]
[343048850,1732311045458,-500.0,0.00089999,120]
[343048851,1732311045467,-500.0,0.00089999,120]
[343048852,1732311045476,-500.0,0.00089999,120]
[343048853,1732311045485,-500.0,0.00091206,120]
[343048854,1732311045495,-500.0,0.00091216,120]
[343048855,1732311045503,-500.0,0.00091305,120]
[343048856,1732311045513,-1995.0,0.00092657,120]
[343048857,1732311045522,-500.0,0.00092846,120]
[343048858,1732311045531,-3565.48376128,0.00093,120]
[343048859,1732311045540,-5000.0,0.00093,120]
[343048860,1732311045549,-900.0,0.00093,94]
[343048861,1732311045559,-298.34,0.00093089,2]
[343048862,1732311045568,-511.96,0.00093098,120]
[343048863,1732311045578,-299.9527354,0.00093099,120]
[343048864,1732311045588,-686.95218899,0.00093233,15]
[343048865,1732311045597,-4933.11224216,0.00093233,15]
[343048866,1732311045607,-158.29,0.000934,120]
[343048867,1732311045616,-411.12,0.000934,120]
[343048868,1732311045626,-2947.93395307,0.0009347,120]
[343048869,1732311045638,-545.75603719,0.0009347,120]
[343048870,1732311045867,-2846.1830121,0.0009347,120]
[343048871,1732311045878,-489.77629836,0.0009347,120]
[343048872,1732311045889,-1944.3226866,0.0009347,120]
[343048873,1732311045900,-16226.02801169,0.0009347,120]
[343048874,1732311045909,-411.13,0.000935,120]
[343048875,1732311045918,-382.25127002,0.00093548,120]
[343048876,1732311045928,-500.0,0.00093556,120]
[343048877,1732311045937,-269.77,0.000936,120]
[343048878,1732311045945,-150.9140371,0.00093629,28]
[343048879,1732311045955,-156.0,0.00093642,60]
[343048880,1732311045964,-158.13393115,0.00093829,120]
[343048881,1732311045974,-2500.0,0.000939,120]
[343048882,1732311045983,-200.0,0.0009392,120]
[343048883,1732311045992,-500.0,0.00093988,120]
[343048884,1732311046002,-500.0,0.00093988,120]
[343048885,1732311046011,-500.0,0.00093988,120]
[343048886,1732311046021,-500.0,0.00093988,120]
[343048887,1732311046030,-500.0,0.00093988,120]
[343048888,1732311046039,-302.1694,0.00093988,120]
[343048889,1732311046048,-584.64,0.00093988,120]
[343048890,1732311046058,-635.48,0.00093988,120]
[343048891,1732311046067,-500.0,0.00093988,120]
[343048892,1732311046076,-5930.46,0.00093988,120]
[343048893,1732311046085,-500.0,0.00093988,120]
[343048894,1732311046095,-500.0,0.00093988,120]
[343048898,1732311046188,-1696.48,0.00093988,120]
[343048900,1732311046200,-887.631855,0.00093988,120]
[343048901,1732311046210,-887.631855,0.00093988,120]
[343048902,1732311046220,-366.377877,0.00093988,120]
[343048903,1732311046229,-366.377877,0.00093988,120]
[343048904,1732311046238,-629.88,0.00093988,120]
[343048905,1732311046247,-500.0,0.00093988,120]
[343048906,1732311046257,-682.6,0.00093989,120]
[343048907,1732311046266,-500.0,0.00093989,120]
[343048908,1732311046276,-500.0,0.00093989,120]
[343048909,1732311046285,-500.0,0.00093989,120]
[343048910,1732311046295,-500.0,0.00093989,120]
[343048911,1732311046304,-500.0,0.00093989,120]
[343048912,1732311046316,-500.0,0.00093989,120]
[343048913,1732311046326,-500.0,0.00093989,120]
[343048914,1732311046335,-500.0,0.00093989,120]
[343048915,1732311046345,-498.62695053,0.00093989,120]
[343048916,1732311046355,-230.89,0.00093989,120]
[343048917,1732311046364,-500.0,0.00093989,120]
[343048918,1732311046373,-258.86,0.00093989,120]
[343048919,1732311046383,-500.0,0.00093989,120]
[343048920,1732311046393,-500.0,0.00093989,120]
[343048921,1732311046402,-500.0,0.00093989,120]
[343048922,1732311046412,-409.57631477,0.00093989,120]
[343048923,1732311046421,-412.71724509,0.00093989,120]
[343048924,1732311046430,-500.0,0.00093989,120]
[343048925,1732311046439,-500.0,0.00093989,120]
[343048926,1732311046449,-504.44,0.00093989,120]
[343048927,1732311046458,-500.0,0.00093989,120]
[343048928,1732311046467,-242.55,0.00093989,120]
[343048929,1732311046477,-158.65,0.00093989,120]
[343048930,1732311046488,-500.0,0.00093989,120]
[343048931,1732311046497,-179.69,0.00093989,120]
[343048932,1732311046506,-163.59,0.00093989,120]
[343048933,1732311046518,-500.0,0.00093989,120]
[343048934,1732311046528,-500.0,0.00093989,120]
[343048935,1732311046538,-500.0,0.00093989,120]
[343048936,1732311046549,-500.0,0.00093989,120]
[343048937,1732311046559,-500.0,0.00093989,120]
[343048938,1732311046568,-231.62124612,0.00093989,120]
[343048939,1732311046578,-500.0,0.00093989,120]
[343048940,1732311046587,-500.0,0.00093989,120]
[343048941,1732311046597,-500.0,0.00093989,120]
[343048942,1732311046607,-1091.93,0.00093989,120]
[343048943,1732311046617,-206.43872185,0.00093989,120]
[343048944,1732311046626,-500.0,0.00093989,120]
[343048945,1732311046636,-500.0,0.00093989,120]
[343048946,1732311046646,-524.93701489,0.00093989,120]
[343048947,1732311046656,-500.0,0.00093989,120]
[343048948,1732311046665,-500.0,0.00093989,120]
[343048949,1732311046675,-500.0,0.00093989,120]
[343048950,1732311046684,-500.0,0.00093989,120]
[343048951,1732311046695,-500.0,0.00093998,120]
[343048952,1732311046705,-500.0,0.00093998,120]
[343048953,1732311046715,-711.62,0.00093998,120]
[343048954,1732311046725,-500.0,0.00093998,120]
[343048955,1732311046735,-2857.25,0.00093998,120]
[343048956,1732311046745,-511.96,0.00093999,120]
[343048957,1732311046754,-511.96,0.00093999,120]
[343048958,1732311046764,-1321.78,0.00093999,120]
[343048959,1732311046773,-1321.78,0.00093999,120]
[343048960,1732311046782,-500.0,0.00093999,120]
[343048961,1732311046792,-500.0,0.00093999,120]
[343048962,1732311046802,-500.0,0.00093999,120]
[343048963,1732311046814,-1065.61,0.00093999,120]
[343048964,1732311046823,-2074.3,0.00093999,120]
[343048965,1732311046835,-2074.3,0.00093999,120]
[343048966,1732311046846,-2074.3,0.00093999,120]
[343048967,1732311046855,-705.87,0.00093999,120]
[343048968,1732311046864,-2934.28,0.00093999,120]
[343048969,1732311046875,-500.0,0.00093999,120]
[343048971,1732311046884,-500.0,0.00093999,120]
[343048972,1732311046894,-500.0,0.00093999,120]
[343048973,1732311046903,-100000.0,0.00094,84]
[343048974,1732311046913,-24192.32186346,0.00094,30]
[343048975,1732311046922,-900.0,0.00094,95]
[343048976,1732311046931,-2384.0,0.00094,30]
[343048977,1732311046942,-151.0,0.00094,120]
[343048978,1732311046952,-151.0,0.00094,120]
[343048979,1732311046961,-151.0,0.00094,120]
[343048980,1732311046970,-151.0,0.00094,120]
[343048981,1732311046979,-258.678017,0.00094,120]
[343048982,1732311046989,-258.678017,0.00094,120]
[343048983,1732311046999,-151.0,0.00094,120]
[343048984,1732311047008,-166.368318,0.00094,120]
[343048985,1732311047019,-335.159151,0.00094,120]
[343048986,1732311047029,-335.159151,0.00094,120]
[343048987,1732311047039,-1165.643538,0.00094,120]
[343048988,1732311047049,-1165.643538,0.00094,120]
[343048989,1732311047059,-3000.0,0.00094,120]
[343048990,1732311047070,-151.0,0.00094,120]
[343048991,1732311047080,-151.0,0.00094,120]
[343048992,1732311047090,-151.0,0.00094,120]
[343048993,1732311047099,-151.0,0.00094,120]
[343048994,1732311047109,-5000.0,0.00094,120]
[343048995,1732311047120,-724.17104,0.0009405,120]
[343048996,1732311047130,-92252.46572994,0.0009405,2]
[343048997,1732311047141,-151.0,0.0009405,120]
[343048998,1732311047150,-151.0,0.0009405,120]
[343048999,1732311047159,-1321.78,0.00094244,120]
[343049000,1732311047170,-154.87655,0.00094244,30]
[343049001,1732311047179,-151.0,0.00094244,120]
[343049002,1732311047189,-151.0,0.00094244,120]
[343049003,1732311047199,-3000.0,0.000944,120]
[343049004,1732311047208,-4545.0,0.0009441,120]
[343049005,1732311047218,-724.17105,0.0009459,120]
[343049006,1732311047227,-158.421,0.000946,120]
[343049007,1732311047236,-150.0,0.00094736,90]
[343049008,1732311047246,-150.0,0.00094743,90]
[343049009,1732311047254,-198.39548033,0.00094744,90]
[343049010,1732311047264,-150.0,0.00094746,90]
[343049011,1732311047273,-150.0,0.00094764,90]
[343049012,1732311047282,-150.0,0.00094773,90]
[343049013,1732311047291,-150.0,0.00094775,90]
[343049014,1732311047300,-150.0,0.00094788,90]
[343049015,1732311047310,-150.0,0.00094789,90]
[343049016,1732311047324,-150.0,0.00094796,90]
[343049017,1732311047334,-150.0,0.00094796,90]
[343049018,1732311047343,-5954.943543,0.000948,2]
[343049019,1732311047352,-3000.0,0.000948,120]
[343049020,1732311047362,-150.0,0.00094823,90]
[343049021,1732311047372,-150.0,0.00094833,90]
[343049022,1732311047381,-150.0,0.00094837,90]
[343049023,1732311047392,-150.0,0.00094838,90]
[343049024,1732311047406,-150.0,0.00094847,90]
[343049025,1732311047415,-239.61076992,0.00094852,90]
[343049026,1732311047424,-150.0,0.00094876,90]
[343049027,1732311047433,-500.0,0.00094878,120]
[343049028,1732311047443,-500.0,0.00094878,120]
[343049029,1732311047451,-1169.88,0.00094878,120]
[343049030,1732311047460,-500.0,0.00094878,120]
[343049031,1732311047469,-594.43658074,0.00094878,120]
[343049032,1732311047478,-500.0,0.00094878,120]
[343049033,1732311047487,-512.14,0.00094878,2]
[343049034,1732311047497,-500.0,0.00094878,120]
[343049035,1732311047508,-500.0,0.00094878,120]
[343049036,1732311047517,-500.0,0.00094878,120]
[343049037,1732311047526,-500.0,0.00094878,120]
[343049038,1732311047536,-562.58,0.00094878,120]
[343049039,1732311047545,-500.0,0.00094878,120]
[343049040,1732311047555,-500.0,0.00094878,120]
[343049041,1732311047564,-500.0,0.00094878,120]
[343049042,1732311047574,-500.0,0.00094878,120]
[343049043,1732311047583,-500.0,0.00094878,120]
[343049044,1732311047593,-500.0,0.00094878,120]
[343049045,1732311047602,-500.0,0.00094878,120]
[343049046,1732311047611,-511.84543127,0.00094878,120]
[343049047,1732311047621,-500.0,0.00094878,120]
[343049048,1732311047630,-500.0,0.00094878,120]
[343049049,1732311047640,-500.0,0.00094878,120]
[343049050,1732311047655,-500.0,0.00094878,120]
[343049051,1732311047664,-500.0,0.00094878,120]
[343049052,1732311047674,-500.0,0.00094878,120]
[343049053,1732311047683,-1471.58,0.00094878,120]
[343049054,1732311047693,-1215.25,0.00094878,120]
[343049055,1732311047702,-500.0,0.00094878,120]
[343049056,1732311047712,-500.0,0.00094878,120]
[343049057,1732311047722,-500.0,0.00094878,120]
[343049058,1732311047731,-500.0,0.00094878,120]
[343049059,1732311047740,-500.0,0.0009488,120]
[343049060,1732311047749,-242.791209,0.0009488,120]
[343049061,1732311047759,-242.791209,0.0009488,120]
[343049062,1732311047769,-394.09343609,0.0009488,120]
[343049063,1732311047778,-151.0,0.0009488,120]
[343049064,1732311047787,-151.0,0.0009488,120]
[343049065,1732311047797,-711.62,0.0009488,120]
[343049066,1732311047806,-500.0,0.0009488,120]
[343049067,1732311047816,-500.0,0.0009488,120]
[343049068,1732311047825,-500.0,0.0009488,120]
[343049069,1732311047835,-584.64,0.0009488,120]
[343049070,1732311047844,-635.48,0.0009488,120]
[343049071,1732311047854,-500.0,0.0009488,120]
[343049072,1732311047863,-5930.46,0.0009488,120]
[343049073,1732311047872,-2857.25,0.0009488,120]
[343049074,1732311047882,-500.0,0.0009488,120]
[343049075,1732311047891,-150.0,0.0009488,90]
[343049076,1732311047901,-500.0,0.0009488,120]
[343049077,1732311047910,-1696.48,0.0009488,120]
[343049078,1732311047919,-629.88,0.0009488,120]
[343049079,1732311047929,-500.0,0.0009488,120]
[343049080,1732311047938,-500.0,0.00094888,120]
[343049081,1732311048020,-500.0,0.00094888,120]
[343049082,1732311048031,-1169.88,0.00094888,120]
[343049083,1732311048040,-500.0,0.00094888,120]
[343049084,1732311048049,-238.31,0.00094888,120]
[343049085,1732311048059,-512.14,0.00094888,2]
[343049086,1732311048068,-500.0,0.00094888,120]
[343049087,1732311048078,-500.0,0.00094888,120]
[343049088,1732311048087,-500.0,0.00094888,120]
[343049089,1732311048097,-562.58,0.00094888,120]
[343049090,1732311048107,-500.0,0.00094888,120]
[343049091,1732311048116,-500.0,0.00094888,120]
[343049092,1732311048126,-500.0,0.00094888,120]
[343049093,1732311048135,-500.0,0.00094888,120]
[343049094,1732311048147,-297.77467639,0.00094888,120]
[343049095,1732311048156,-1471.58,0.00094888,120]
[343049096,1732311048166,-1215.25,0.00094888,120]
[343049097,1732311048175,-500.0,0.00094888,120]
[343049098,1732311048185,-500.0,0.00094888,120]
[343049099,1732311048195,-500.0,0.00094888,120]
[343049100,1732311048204,-500.0,0.00094888,120]
[343049101,1732311048214,-682.6,0.00094889,120]
[343049102,1732311048223,-500.0,0.00094889,120]
[343049103,1732311048232,-500.0,0.00094889,120]
[343049104,1732311048241,-361.539999,0.00094889,120]
[343049105,1732311048251,-367.89345375,0.00094889,120]
[343049106,1732311048260,-500.0,0.00094889,120]
[343049107,1732311048269,-500.0,0.00094889,120]
[343049108,1732311048279,-500.0,0.00094889,120]
[343049109,1732311048289,-500.0,0.00094889,120]
[343049110,1732311048298,-500.0,0.00094889,120]
[343049111,1732311048308,-500.0,0.00094889,120]
[343049112,1732311048323,-500.0,0.00094889,120]
[343049113,1732311048332,-500.0,0.00094889,120]
[343049114,1732311048342,-500.0,0.00094889,120]
[343049115,1732311048351,-500.0,0.00094889,120]
[343049116,1732311048361,-500.0,0.00094889,120]
[343049117,1732311048371,-500.0,0.00094889,120]
[343049118,1732311048380,-584.64,0.00094889,120]
[343049119,1732311048391,-339.06,0.00094889,120]
[343049120,1732311048402,-635.48,0.00094889,120]
[343049121,1732311048413,-573.38,0.00094889,120]
[343049122,1732311048423,-239.61169611,0.00094889,120]
[343049123,1732311048432,-500.0,0.00094889,120]
[343049124,1732311048441,-500.0,0.00094889,120]
[343049125,1732311048451,-500.0,0.00094889,120]
[343049126,1732311048461,-500.0,0.00094889,120]
[343049127,1732311048470,-5930.46,0.00094889,120]
[343049128,1732311048480,-500.0,0.00094889,120]
[343049129,1732311048489,-1091.93,0.00094889,120]
[343049130,1732311048499,-500.0,0.00094889,120]
[343049131,1732311048508,-500.0,0.00094889,120]
[343049132,1732311048518,-500.0,0.00094889,120]
[343049133,1732311048527,-1696.48,0.00094889,120]
[343049134,1732311048536,-629.88,0.00094889,120]
[343049135,1732311048546,-393.02306838,0.00094889,120]
[343049136,1732311048556,-682.6,0.00094899,120]
[343049137,1732311048565,-500.0,0.00094899,120]
[343049138,1732311048575,-500.0,0.00094899,120]
[343049139,1732311048584,-173.02651318,0.00094899,120]
[343049140,1732311048594,-500.0,0.00094899,120]
[343049141,1732311048604,-500.0,0.00094899,120]
[343049142,1732311048613,-500.0,0.00094899,120]
[343049143,1732311048623,-500.0,0.00094899,120]
[343049144,1732311048632,-500.0,0.00094899,120]
[343049145,1732311048642,-1169.88,0.00094899,120]
[343049146,1732311048651,-1169.88,0.00094899,120]
[343049147,1732311048661,-519.92013452,0.00094899,120]
[343049148,1732311048671,-500.0,0.00094899,120]
[343049149,1732311048680,-325.68,0.00094899,120]
[343049150,1732311048690,-500.0,0.00094899,120]
[343049151,1732311048700,-711.62,0.00094899,120]
[343049152,1732311048710,-711.62,0.00094899,120]
[343049153,1732311048720,-500.0,0.00094899,120]
[343049154,1732311048730,-454.007695,0.00094899,120]
[343049155,1732311048740,-500.0,0.00094899,120]
[343049156,1732311048750,-500.0,0.00094899,120]
[343049157,1732311048760,-500.0,0.00094899,120]
[343049158,1732311048770,-500.0,0.00094899,120]
[343049159,1732311048780,-500.0,0.00094899,120]
[343049160,1732311048790,-500.0,0.00094899,120]
[343049161,1732311048800,-500.0,0.00094899,120]
[343049162,1732311048810,-512.14,0.00094899,2]
[343049163,1732311048820,-512.14,0.00094899,2]
[343049164,1732311048829,-584.64,0.00094899,120]
[343049165,1732311048839,-584.64,0.00094899,120]
[343049166,1732311048849,-500.0,0.00094899,120]
[343049167,1732311048859,-500.0,0.00094899,120]